fUST/lending_fUST_20240320
["ID","MTS","AMOUNT","RATE_DAILY","PERIOD"]
[319566239,1710867033155,-500.0,0.00082191,120]
[319566240,1710867033165,-500.0,0.00082191,120]
[319566241,1710867033175,-500.0,0.00082191,120]
[319566242,1710867033184,-500.0,0.00082191,120]
[319566243,1710867033194,-500.0,0.00082191,120]
[319566244,1710867033203,-579.85,0.00082191,120]
[319566245,1710867033213,-175.76628098,0.00082191,120]
[319566246,1710867033223,-2874.06,0.00082191,120]
[319566247,1710867033233,-500.0,0.00082191,120]
[319566248,1710867033242,-500.0,0.00082191,120]
[319566249,1710867033252,-500.0,0.00082191,120]
[319566250,1710867033261,-1000.0,0.00082191,120]
[319566251,1710867033270,-500.0,0.00082191,120]
[319566252,1710867033279,-500.0,0.00082191,120]
[319566253,1710867033289,-500.0,0.00082191,120]
[319566254,1710867033298,-500.0,0.00082191,120]
[319566255,1710867033308,-1567.0,0.00082191,120]
[319566256,1710867033319,-500.0,0.00082191,120]
[319566257,1710867033329,-2196.57,0.00082191,120]
[319566258,1710867033339,-500.0,0.00082191,120]
[319566259,1710867033348,-500.0,0.00082191,120]
[319566260,1710867033359,-500.0,0.00082191,120]
[319566261,1710867033371,-500.0,0.00082191,120]
[319566262,1710867033382,-500.0,0.00082191,120]
[319566263,1710867033391,-500.0,0.00082191,120]
[319566264,1710867033402,-500.0,0.00082191,120]
[319566265,1710867033411,-500.0,0.00082191,120]
[319566266,1710867033421,-610.9,0.00082191,120]
[319566267,1710867033430,-500.0,0.00082191,120]
[319566268,1710867033439,-500.0,0.00082191,120]
[319566269,1710867033449,-691.67,0.00082191,120]
[319566270,1710867033458,-500.0,0.00082191,120]
[319566271,1710867033468,-500.0,0.00082191,120]
[319566272,1710867033477,-840.24,0.00082191,120]
[319566273,1710867033487,-188.46695095,0.00082191,120]
[319566274,1710867033497,-500.0,0.00082191,120]
[319566275,1710867033506,-1508.29,0.00082191,120]
[319566276,1710867033515,-500.0,0.00082191,120]
[319566277,1710867033524,-500.0,0.00082191,120]
[319566278,1710867033533,-4719.77,0.00082191,120]
[319566279,1710867033543,-500.0,0.00082191,120]
[319566280,1710867033551,-500.0,0.00082191,120]
[319566281,1710867033561,-1225.73,0.00082191,120]
[319566282,1710867033570,-669.66,0.00082191,120]
[319566283,1710867033579,-205.87428516,0.00082191,120]
[319566284,1710867033688,-2771.68,0.00082191,120]
[319566285,1710867033699,-621.79219141,0.00082191,120]
[319566286,1710867033709,-500.0,0.00082191,120]
[319566287,1710867033718,-500.0,0.00082191,120]
[319566288,1710867033728,-1145.69,0.00082191,120]
[319566289,1710867033739,-293.6184115,0.00082191,120]
[319566290,1710867033748,-500.0,0.00082191,120]
[319566291,1710867033757,-500.0,0.00082191,120]
[319566292,1710867033767,-585.62,0.00082191,120]
[319566293,1710867033776,-500.0,0.00082191,120]
[319566294,1710867033786,-1546.33,0.00082191,120]
[319566295,1710867033795,-500.0,0.00082191,120]
[319566296,1710867033804,-954.88,0.00082191,120]
[319566297,1710867033813,-154.98450155,0.00082191,2]
[319566298,1710867033823,-444.84385342,0.00082191,120]
[319566299,1710867033833,-500.0,0.00082191,120]
[319566300,1710867033842,-500.0,0.00082191,120]
[319566301,1710867033851,-3227.47,0.00082191,120]
[319566302,1710867033861,-500.0,0.00082191,120]
[319566303,1710867033875,-689.35,0.00082191,120]
[319566304,1710867033884,-500.0,0.00082191,120]
[319566305,1710867033894,-500.0,0.00082191,120]
[319566306,1710867033903,-500.0,0.00082191,120]
[319566307,1710867033913,-500.0,0.00082191,120]
[319566308,1710867033923,-151.0,0.00082191,120]
[319566309,1710867033933,-635.86,0.00082191,120]
[319566310,1710867033943,-500.0,0.00082191,120]
[319566311,1710867033953,-500.0,0.00082191,120]
[319566312,1710867033963,-500.0,0.00082191,120]
[319566313,1710867033974,-236.72665376,0.00082191,120]
[319566314,1710867033983,-568.25,0.00082191,120]
[319566315,1710867033993,-500.0,0.00082191,120]
[319566316,1710867034003,-500.0,0.00082191,120]
[319566317,1710867034012,-500.0,0.00082191,120]
[319566318,1710867034022,-500.0,0.00082191,120]
[319566319,1710867034031,-515.83574198,0.00082191,120]
[319566320,1710867034040,-500.0,0.00082191,120]
[319566321,1710867034049,-500.0,0.00082191,120]
[319566322,1710867034059,-500.0,0.00082191,120]
[319566323,1710867034068,-500.0,0.00082191,120]
[319566324,1710867034079,-500.0,0.00082191,120]
[319566325,1710867034088,-500.0,0.00082191,2]
[319566326,1710867034097,-687.19,0.00082191,120]
[319566327,1710867034107,-500.0,0.00082191,120]
[319566328,1710867034116,-500.0,0.00082191,120]
[319566329,1710867034131,-632.39,0.00082191,120]
[319566330,1710867034140,-500.0,0.00082191,120]
[319566331,1710867034149,-578.99,0.00082191,120]
[319566332,1710867034159,-2500.0,0.00082191,120]
[319566333,1710867034168,-2165.9,0.00082191,120]
[319566334,1710867034177,-1451.19,0.00082191,120]
[319566335,1710867034186,-500.0,0.00082191,120]
[319566336,1710867034195,-395.61762437,0.00082191,120]
[319566337,1710867034205,-938.91,0.00082191,120]
[319566338,1710867034214,-170.62244243,0.00082191,120]
[319566339,1710867034224,-500.0,0.00082191,120]
[319566340,1710867034233,-500.0,0.00082191,120]
[319566341,1710867034243,-500.0,0.00082191,120]
[319566342,1710867034252,-1800.88,0.00082191,120]
[319566343,1710867034261,-500.0,0.00082191,120]
[319566344,1710867034271,-2764.96,0.00082191,120]
[319566345,1710867034280,-2189.87,0.00082191,120]
[319566346,1710867034289,-615.9664215,0.00082191,120]
[319566347,1710867034301,-500.0,0.00082191,120]
[319566348,1710867034310,-264.49982317,0.00082191,120]
[319566349,1710867034319,-500.0,0.00082191,120]
[319566350,1710867034328,-571.25,0.00082191,120]
[319566351,1710867034340,-7638.82,0.00082191,120]
[319566352,1710867034350,-2378.55,0.00082191,120]
[319566353,1710867034360,-500.0,0.00082191,120]
[319566354,1710867034372,-698.03,0.00082191,120]
[319566355,1710867034383,-500.0,0.00082191,120]
[319566356,1710867034393,-500.0,0.00082191,120]
[319566357,1710867034404,-7375.84,0.00082191,120]
[319566358,1710867034414,-500.0,0.00082191,120]
[319566359,1710867034423,-500.0,0.00082191,120]
[319566360,1710867034433,-500.0,0.00082191,120]
[319566361,1710867034442,-1772.1,0.00082191,120]
[319566362,1710867034452,-7634.89,0.00082191,120]
[319566363,1710867034461,-775.18,0.00082191,120]
[319566364,1710867034471,-500.0,0.00082191,120]
[319566365,1710867034480,-500.0,0.00082191,120]
[319566366,1710867034489,-6111.11,0.00082191,120]
[319566367,1710867034499,-6112.08,0.00082191,120]
[319566368,1710867034508,-500.0,0.00082191,120]
[319566369,1710867034518,-500.0,0.00082191,120]
[319566370,1710867034527,-984.7,0.00082191,120]
[319566371,1710867034537,-500.0,0.00082191,120]
[319566372,1710867034547,-608.34,0.00082191,120]
[319566373,1710867034556,-341.99021926,0.00082191,120]
[319566374,1710867034565,-662.22,0.00082191,120]
[319566375,1710867034575,-500.0,0.00082191,120]
[319566376,1710867034585,-500.0,0.00082191,120]
[319566377,1710867034594,-500.0,0.00082191,120]
[319566378,1710867034603,-500.0,0.00082191,120]
[319566379,1710867034612,-722.31,0.00082191,120]
[319566380,1710867034625,-500.0,0.00082191,120]
[319566381,1710867034635,-3819.44,0.00082191,120]
[319566382,1710867034645,-500.0,0.00082191,120]
[319566383,1710867034654,-500.0,0.00082191,120]
[319566384,1710867034664,-500.0,0.00082191,120]
[319566385,1710867034673,-3461.8,0.00082191,120]
[319566386,1710867034683,-6111.11,0.00082191,120]
[319566387,1710867034692,-920.22,0.00082191,120]
[319566388,1710867034702,-620.12,0.00082191,120]
[319566389,1710867034711,-500.0,0.00082191,120]
[319566390,1710867034719,-500.0,0.00082191,120]
[319566391,1710867034728,-500.0,0.00082191,120]
[319566392,1710867034737,-500.0,0.00082191,120]
[319566393,1710867034747,-503.67226277,0.00082191,120]
[319566394,1710867034756,-500.0,0.00082191,120]
[319566395,1710867034765,-500.0,0.00082191,120]
[319566396,1710867034774,-500.0,0.00082191,120]
[319566397,1710867034783,-500.0,0.00082191,120]
[319566398,1710867034792,-748.97,0.00082191,120]
[319566399,1710867034802,-2168.86,0.00082191,120]
[319566400,1710867034811,-696.8,0.00082191,120]
[319566401,1710867034820,-587.74,0.00082191,120]
[319566402,1710867034830,-497.75492088,0.00082191,120]
[319566403,1710867034839,-500.0,0.00082191,120]
[319566404,1710867034848,-1637.25,0.00082191,120]
[319566405,1710867034858,-517.85147195,0.00082191,120]
[319566406,1710867034867,-1059.28,0.00082191,120]
[319566407,1710867034878,-500.0,0.00082191,120]
[319566408,1710867034887,-500.0,0.00082191,120]
[319566409,1710867034896,-501.4881897,0.00082191,120]
[319566410,1710867034905,-610.3,0.00082191,120]
[319566411,1710867034914,-9995.6,0.00082191,120]
[319566412,1710867034923,-379.33579239,0.00082191,120]
[319566413,1710867034932,-1812.98,0.00082191,120]
[319566414,1710867034941,-501.00542933,0.00082191,120]
[319566415,1710867034950,-500.0,0.00082191,120]
[319566416,1710867034959,-997.6,0.00082191,60]
[319566417,1710867034969,-770.97,0.00082191,120]
[319566418,1710867034978,-500.0,0.00082191,120]
[319566419,1710867034988,-500.0,0.00082191,120]
[319566420,1710867034997,-500.0,0.00082191,120]
[319566421,1710867035006,-500.0,0.00082191,120]
[319566422,1710867035016,-500.0,0.00082191,120]
[319566423,1710867035025,-500.0,0.00082191,120]
[319566424,1710867035035,-500.0,0.00082191,120]
[319566425,1710867035045,-500.0,0.00082191,120]
[319566426,1710867035055,-500.0,0.00082191,120]
[319566427,1710867035064,-250.428531,0.00082191,120]
[319566428,1710867035074,-500.0,0.00082191,120]
[319566429,1710867035084,-5716.13,0.00082191,120]
[319566430,1710867035093,-500.0,0.00082191,120]
[319566431,1710867035103,-556.68730629,0.00082191,120]
[319566432,1710867035113,-500.0,0.00082191,120]
[319566433,1710867035125,-500.0,0.00082191,120]
[319566434,1710867035135,-500.0,0.00082191,120]
[319566435,1710867035145,-500.0,0.00082191,120]
[319566436,1710867035155,-500.0,0.00082191,120]
[319566437,1710867035165,-500.0,0.00082191,120]
[319566438,1710867035175,-2360.02,0.00082191,120]
[319566439,1710867035185,-500.0,0.00082191,120]
[319566440,1710867035195,-649.67252467,0.00082191,120]
[319566441,1710867035205,-1909.68,0.00082191,120]
[319566442,1710867035214,-500.0,0.00082191,120]
[319566443,1710867035224,-500.0,0.00082191,120]
[319566444,1710867035234,-5292.53,0.00082191,120]
[319566445,1710867035244,-934.49,0.00082191,120]
[319566446,1710867035254,-500.0,0.00082191,120]
[319566447,1710867035265,-155.15599764,0.00082191,120]
[319566448,1710867035275,-616.62,0.00082191,120]
[319566449,1710867035285,-2588.83,0.00082191,120]
[319566450,1710867035296,-500.0,0.00082191,120]
[319566451,1710867035306,-500.0,0.00082191,120]
[319566452,1710867035317,-666.16,0.00082191,120]
[319566453,1710867035329,-500.0,0.00082191,120]
[319566454,1710867035339,-1027.37,0.00082191,120]
[319566455,1710867035349,-7134.93,0.00082191,120]
[319566456,1710867035359,-500.0,0.00082191,120]
[319566457,1710867035372,-500.0,0.00082191,120]
[319566458,1710867035383,-500.0,0.00082191,120]
[319566459,1710867035393,-500.0,0.00082191,120]
[319566460,1710867035404,-500.0,0.00082191,120]
[319566461,1710867035415,-1960.04,0.00082191,120]
[319566462,1710867035426,-30463.39,0.00082191,120]
[319566463,1710867035436,-3513.24,0.00082191,120]
[319566464,1710867035446,-500.0,0.00082191,120]
[319566465,1710867035457,-500.0,0.00082191,120]
[319566466,1710867035467,-500.0,0.00082191,120]
[319566467,1710867035477,-500.0,0.00082191,120]
[319566468,1710867035487,-1851.49,0.00082191,120]
[319566469,1710867035498,-2912.03,0.00082191,120]
[319566470,1710867035508,-500.0,0.00082191,120]
[319566471,1710867035518,-7239.55,0.00082191,120]
[319566472,1710867035528,-500.0,0.00082191,120]
[319566473,1710867035538,-500.0,0.00082191,120]
[319566474,1710867035548,-500.0,0.00082191,120]
[319566475,1710867035557,-500.0,0.00082191,120]
[319566476,1710867035567,-500.0,0.00082191,120]
[319566477,1710867035577,-500.0,0.00082191,120]
[319566478,1710867035587,-4974.66,0.00082191,120]
[319566479,1710867035597,-2669.18,0.00082191,120]
[319566480,1710867035607,-500.0,0.00082191,120]
[319566481,1710867035617,-500.0,0.00082191,120]
[319566482,1710867035629,-1053.69,0.00082191,120]
[319566483,1710867035639,-500.0,0.00082191,120]
[319566484,1710867035648,-500.0,0.00082191,120]
[319566485,1710867035745,-936.87,0.00082191,120]
[319566486,1710867035755,-500.0,0.00082191,120]
[319566487,1710867035765,-12660.16,0.00082191,120]
[319566488,1710867035775,-500.0,0.00082191,120]
[319566489,1710867035785,-500.0,0.00082191,120]
[319566490,1710867035795,-500.0,0.00082191,120]
[319566491,1710867035804,-20216.7,0.00082191,120]
[319566492,1710867035814,-500.0,0.00082191,120]
[319566493,1710867035824,-667.69,0.00082191,120]
[319566494,1710867035834,-667.69,0.00082191,120]
[319566495,1710867035843,-667.69,0.00082191,120]
[319566496,1710867035853,-667.69,0.00082191,120]
[319566497,1710867035863,-667.69,0.00082191,120]
[319566498,1710867035876,-500.0,0.00082191,120]
[319566499,1710867035885,-667.69,0.00082191,120]
[319566500,1710867035895,-667.69,0.00082191,120]
[319566501,1710867035904,-1527.77,0.00082191,120]
[319566502,1710867035914,-667.69,0.00082191,120]
[319566503,1710867035923,-667.69,0.00082191,120]
[319566504,1710867035933,-667.69,0.00082191,120]
[319566505,1710867035943,-667.69,0.00082191,120]
[319566506,1710867035954,-667.69,0.00082191,120]
[319566507,1710867035964,-667.69,0.00082191,120]
[319566508,1710867035974,-667.69,0.00082191,120]
[319566509,1710867035984,-667.69,0.00082191,120]
[319566510,1710867035994,-667.69,0.00082191,120]
[319566511,1710867036003,-667.69,0.00082191,120]
[319566512,1710867036013,-3234.59,0.00082191,120]
[319566513,1710867036023,-667.69,0.00082191,120]
[319566514,1710867036032,-667.69,0.00082191,120]
[319566515,1710867036042,-667.69,0.00082191,120]
[319566516,1710867036052,-667.69,0.00082191,120]
[319566517,1710867036061,-500.0,0.00082191,120]
[319566518,1710867036071,-667.69,0.00082191,120]
[319566519,1710867036081,-500.0,0.00082191,120]
[319566520,1710867036091,-667.69,0.00082191,120]
[319566521,1710867036100,-667.92847446,0.00082191,120]
[319566522,1710867036111,-500.0,0.00082191,120]
[319566523,1710867036122,-500.0,0.00082191,120]
[319566524,1710867036132,-500.0,0.00082191,120]
[319566525,1710867036141,-4398.99,0.00082191,120]
[319566526,1710867036151,-500.0,0.00082191,120]
[319566527,1710867036161,-2237.53,0.00082191,120]
[319566528,1710867036172,-2237.53,0.00082191,120]
[319566529,1710867036182,-500.0,0.00082191,120]
[319566530,1710867036192,-2237.53,0.00082191,120]
[319566531,1710867036202,-2237.53,0.00082191,120]
[319566532,1710867036212,-2237.53,0.00082191,120]
[319566533,1710867036222,-1776.2,0.00082191,120]
[319566534,1710867036231,-2237.53,0.00082191,120]
[319566535,1710867036241,-2237.53,0.00082191,120]
[319566536,1710867036251,-2237.53,0.00082191,120]
[319566537,1710867036261,-2237.53,0.00082191,120]
[319566538,1710867036271,-2237.53,0.00082191,120]
[319566539,1710867036280,-2237.53,0.00082191,120]
[319566540,1710867036290,-2237.53,0.00082191,120]
[319566541,1710867036305,-2237.53,0.00082191,120]
[319566542,1710867036315,-500.0,0.00082191,7]
[319566543,1710867036326,-2264.31,0.00082191,120]
[319566544,1710867036336,-2237.53,0.00082191,120]
[319566545,1710867036347,-2237.53,0.00082191,120]
[319566546,1710867036356,-2237.53,0.00082191,120]
[319566547,1710867036366,-2237.53,0.00082191,120]
[319566548,1710867036380,-2237.53,0.00082191,120]
[319566549,1710867036392,-500.0,0.00082191,120]
[319566550,1710867036401,-500.0,0.00082191,120]
[319566551,1710867036411,-2524.43,0.00082191,120]
[319566552,1710867036421,-500.0,0.00082191,120]
[319566553,1710867036430,-631.47905137,0.00082191,120]
[319566554,1710867036440,-500.0,0.00082191,120]
[319566555,1710867036449,-420.58954517,0.00082191,120]
[319566556,1710867036459,-1023.04,0.00082191,120]
[319566557,1710867036469,-676.11,0.00082191,120]
[319566558,1710867036478,-3819.4,0.00082191,120]
[319566559,1710867036487,-500.0,0.00082191,120]
[319566560,1710867036496,-19480.22,0.00082191,90]
[319566561,1710867036507,-444.00200641,0.00082191,120]
[319566562,1710867036516,-500.0,0.00082191,120]
[319566563,1710867036526,-500.0,0.00082191,120]
[319566564,1710867036537,-500.0,0.00082191,120]
[319566565,1710867036547,-10591.71,0.00082191,120]
[319566566,1710867036557,-500.0,0.00082191,120]
[319566567,1710867036567,-294.6432516,0.00082191,2]
[319566568,1710867036578,-500.0,0.00082191,120]
[319566569,1710867036588,-763.9,0.00082191,120]
[319566570,1710867036597,-411.79926988,0.00082191,120]
[319566571,1710867036607,-5559.72,0.00082191,21]
[319566572,1710867036617,-500.0,0.00082191,120]
[319566573,1710867036632,-1384.71,0.00082191,120]
[319566574,1710867036641,-500.0,0.00082191,120]
[319566575,1710867036651,-500.0,0.00082191,120]
[319566576,1710867036662,-500.0,0.00082191,120]
[319566577,1710867036673,-500.0,0.00082191,120]
[319566578,1710867036683,-500.0,0.00082191,120]
[319566579,1710867036693,-2976.96,0.00082191,120]
[319566580,1710867036703,-500.0,0.00082191,120]
[319566581,1710867036714,-500.0,0.00082191,120]
[319566582,1710867036724,-500.0,0.00082191,120]
[319566583,1710867036734,-500.0,0.00082191,120]
[319566584,1710867036744,-500.0,0.00082191,120]
[319566585,1710867036754,-500.0,0.00082191,120]
[319566586,1710867036764,-359.57633026,0.00082191,120]
[319566587,1710867036774,-500.0,0.00082191,120]
[319566588,1710867036784,-500.0,0.00082191,120]
[319566589,1710867036794,-500.0,0.00082191,120]
[319566590,1710867036803,-500.0,0.00082191,120]
[319566591,1710867036813,-500.0,0.00082191,120]
[319566592,1710867036824,-600.25,0.00082191,120]
[319566593,1710867036833,-500.0,0.00082191,120]
[319566594,1710867036843,-500.0,0.00082191,120]
[319566595,1710867036853,-1650.45,0.00082191,120]
[319566596,1710867036862,-612.08,0.00082191,120]
[319566597,1710867036875,-4299.3,0.00082191,120]
[319566598,1710867036885,-500.0,0.00082191,120]
[319566599,1710867036894,-500.0,0.00082191,120]
[319566600,1710867036903,-500.0,0.00082191,120]
[319566601,1710867036913,-500.0,0.00082191,120]
[319566602,1710867036922,-500.0,0.00082191,120]
[319566603,1710867036932,-500.0,0.00082191,120]
[319566604,1710867036942,-500.0,0.00082191,7]
[319566605,1710867036952,-9099.06,0.00082191,120]
[319566606,1710867036962,-500.0,0.00082191,120]
[319566607,1710867036973,-500.0,0.00082191,120]
[319566608,1710867036983,-500.0,0.00082191,120]
[319566609,1710867036992,-500.0,0.00082191,120]
[319566610,1710867037002,-2423.91,0.00082191,120]
[319566611,1710867037011,-39966.86,0.00082191,120]
[319566612,1710867037021,-2237.53,0.00088879,120]
[319566613,1710867037030,-2237.53,0.00088879,120]
[319566614,1710867037040,-2237.53,0.00088879,120]
[319566615,1710867037049,-2237.53,0.00088879,120]
[319566616,1710867037059,-2237.53,0.00088879,120]
[319566617,1710867037068,-2237.6303695,0.00088879,120]
[319566618,1710867037078,-100000.0,0.0008888,120]
[319566619,1710867037088,-150.0,0.00089039,120]
[319566620,1710867037097,-500.0,0.0008904,120]
[319566621,1710867037106,-1443.85,0.0008904,120]
[319566622,1710867037116,-500.0,0.0008904,120]
[319566623,1710867037128,-501.40024519,0.0008904,120]
[319566624,1710867037138,-500.0,0.0008904,120]
[319566625,1710867037147,-500.0,0.0008904,120]
[319566626,1710867037157,-500.0,0.0008904,120]
[319566627,1710867037167,-500.0,0.0008904,120]
[319566628,1710867037177,-500.0,0.0008904,120]
[319566629,1710867037187,-500.0,0.0008904,120]
[319566630,1710867037196,-500.0,0.0008904,120]
[319566631,1710867037206,-500.0,0.0008904,120]
[319566632,1710867037216,-3016.66,0.0008904,120]
[319566633,1710867037225,-509.98256243,0.0008904,120]
[319566634,1710867037234,-500.0,0.0008904,120]
[319566635,1710867037243,-500.0,0.0008904,120]
[319566636,1710867037253,-971.95,0.0008904,120]
[319566637,1710867037262,-625.98,0.0008904,120]
[319566638,1710867037272,-500.0,0.0008904,120]
[319566639,1710867037281,-1143.01,0.0008904,7]
[319566640,1710867037290,-500.0,0.0008904,120]
[319566641,1710867037300,-500.0,0.0008904,120]
[319566642,1710867037309,-500.0,0.0008904,120]
[319566643,1710867037320,-2727.64,0.0008904,120]
[319566644,1710867037330,-500.0,0.0008904,120]
[319566645,1710867037339,-500.0,0.0008904,120]
[319566646,1710867037349,-500.0,0.0008904,120]
[319566647,1710867037359,-510.2703508,0.0008904,120]
[319566648,1710867037371,-500.0,0.0008904,120]
[319566649,1710867037380,-500.0,0.0008904,120]
[319566650,1710867037390,-500.0,0.0008904,120]
[319566651,1710867037400,-500.0,0.0008904,120]
[319566652,1710867037409,-1282.75,0.0008904,120]
[319566654,1710867037419,-537.51,0.0008904,120]
[319566656,1710867037427,-501.55137726,0.0008904,120]
[319566658,1710867037437,-649.26,0.0008904,120]
[319566660,1710867037446,-3819.44,0.0008904,120]
[319566662,1710867037455,-500.0,0.0008904,120]
[319566663,1710867037465,-500.0,0.0008904,120]
[319566665,1710867037475,-500.0,0.0008904,120]
[319566667,1710867037484,-500.0,0.0008904,120]
[319566669,1710867037493,-500.0,0.0008904,120]
[319566671,1710867037503,-3256.72,0.0008904,120]
[319566673,1710867037512,-500.0,0.0008904,120]
[319566674,1710867037521,-500.0,0.0008904,120]
[319566676,1710867037530,-495.65391057,0.0008904,120]
[319566677,1710867037539,-500.0,0.0008904,120]
[319566678,1710867037549,-359.55911371,0.0008904,120]
[319566680,1710867037558,-500.0,0.0008904,120]
[319566683,1710867037567,-500.0,0.0008904,120]
[319566685,1710867037660,-500.0,0.0008904,120]
[319566686,1710867037670,-391.52826428,0.0008904,120]
[319566687,1710867037680,-500.0,0.0008904,120]
[319566688,1710867037690,-500.0,0.0008904,120]
[319566689,1710867037699,-500.0,0.0008904,120]
[319566690,1710867037709,-603.94,0.0008904,120]
[319566691,1710867037718,-500.0,0.0008904,120]
[319566692,1710867037727,-573.65854256,0.0008904,120]
[319566694,1710867037737,-500.0,0.0008904,120]
[319566696,1710867037747,-500.0,0.0008904,120]
[319566698,1710867037756,-881.68,0.0008904,120]
[319566700,1710867037765,-500.0,0.0008904,120]
[319566701,1710867037774,-500.0,0.0008904,120]
[319566702,1710867037784,-1194.74,0.0008904,120]
[319566703,1710867037794,-500.0,0.0008904,120]
[319566704,1710867037804,-500.0,0.0008904,120]
[319566705,1710867037814,-500.0,0.0008904,120]
[319566706,1710867037823,-500.0,0.0008904,120]
[319566707,1710867037832,-500.0,0.0008904,120]
[319566708,1710867037841,-500.0,0.0008904,120]
[319566709,1710867037851,-500.0,0.0008904,120]
[319566710,1710867037861,-500.0,0.0008904,120]
[319566711,1710867037871,-474.63217038,0.0008904,120]
[319566712,1710867037881,-500.0,0.0008904,120]
[319566713,1710867037890,-500.0,0.0008904,120]
[319566714,1710867037900,-500.0,0.0008904,120]
[319566715,1710867037909,-500.0,0.0008904,120]
[319566716,1710867037919,-500.0,0.0008904,120]
[319566717,1710867037928,-500.0,0.0008904,120]
[319566718,1710867037937,-500.0,0.0008904,120]
[319566719,1710867037947,-598.12,0.0008904,120]
[319566720,1710867037957,-500.0,0.0008904,120]
[319566721,1710867037969,-500.0,0.0008904,120]
[319566722,1710867037979,-887.48,0.0008904,120]
[319566723,1710867037988,-500.0,0.0008904,120]
[319566724,1710867037998,-500.0,0.0008904,120]
[319566725,1710867038008,-595.73691148,0.0008904,120]
[319566726,1710867038017,-500.0,0.0008904,120]
[319566727,1710867038027,-798.69,0.0008904,10]
[319566728,1710867038037,-500.0,0.0008904,120]
[319566729,1710867038046,-500.0,0.0008904,120]
[319566730,1710867038056,-500.0,0.0008904,120]
[319566731,1710867038066,-1235.05,0.0008904,120]
[319566732,1710867038076,-250.0,0.0008904,120]
[319566733,1710867038085,-500.0,0.0008904,120]
[319566734,1710867038095,-916.8,0.0008904,120]
[319566735,1710867038105,-511.65866375,0.0008904,120]
[319566736,1710867038115,-604.36,0.0008904,120]
[319566738,1710867038127,-617.38,0.0008904,120]
[319566739,1710867038137,-40309.041786,0.000898,120]
[319566741,1710867038148,-6393.7243657,0.000899,120]
[319566742,1710867038158,-7952.92016184,0.0009,4]
[319566743,1710867038167,-150.0,0.00090039,120]
[319566744,1710867038177,-20000.0,0.0009057,120]
[319566746,1710867038189,-500.0,0.00090999,120]
[319566747,1710867038199,-2000.0,0.000925,120]
[319566748,1710867038209,-1000.0,0.000925,120]
[319566749,1710867038219,-1000.0,0.000925,120]
[319566750,1710867038229,-1000.0,0.000925,120]
[319566751,1710867038238,-155.0,0.000925,7]
[319566753,1710867038248,-11620.84,0.0009268,120]
[319566755,1710867038259,-189514.19142854,0.00092818,120]
[319566757,1710867038269,-189514.19142854,0.00092856,120]
[319566759,1710867038279,-189514.19142854,0.00092869,120]
[319566761,1710867038289,-189514.19142854,0.00092889,120]
[319566763,1710867038305,-500.0,0.00092898,120]
[319566765,1710867038316,-500.0,0.00092898,120]
[319566767,1710867038326,-500.0,0.00092898,120]
[319566769,1710867038336,-500.0,0.00092899,120]